[Event "Titled Tuesday Blitz June 21 Early 2022"]
[White "Nguyen, Quoc Hy"]
[Black "Martin, Lewis"]
[WhiteFideId "12410853"]
[BlackFideId "410551"]
[WhiteElo "1938"]
[BlackElo "2145"]
[Result "1-0"]
[Round "01"]
[TimeControl "180+1"]
[Date "2022.06.22"]
[WhiteClock "0:00:03"]
[BlackClock "0:00:02"]

1. d4 {[%clk 0:02:58]}  d5 {[%clk 0:02:59]} 2. c4 {[%clk 0:02:57]}  c6 {[%clk 0:02:59]} 3. Nc3 {[%clk 0:02:58]}  dxc4 {[%clk 0:02:59]} 4. a4 {[%clk 0:02:56]}  Nf6 {[%clk 0:02:57]} 5. e4 {[%clk 0:02:45]}  e5 {[%clk 0:02:56]} 6. Nf3 {[%clk 0:02:26]}  exd4 {[%clk 0:02:54]} 7. Nxd4 {[%clk 0:02:23]}  Bb4 {[%clk 0:02:52]} 8. Bxc4 {[%clk 0:02:19]}  Nxe4 {[%clk 0:02:49]} 9. O-O {[%clk 0:02:19]}  Bxc3 {[%clk 0:02:43]} 10. bxc3 {[%clk 0:01:53]}  O-O {[%clk 0:02:42]} 11. Qf3 {[%clk 0:01:36]}  Nd6 {[%clk 0:02:38]} 12. Ba2 {[%clk 0:01:35]}  Nd7 {[%clk 0:02:34]} 13. Bf4 {[%clk 0:01:24]}  Nf6 {[%clk 0:02:33]} 14. h3 {[%clk 0:01:01]}  a6 {[%clk 0:01:43]} 15. Rfd1 {[%clk 0:00:53]}  Nfe4 {[%clk 0:01:26]} 16. Nxc6 {[%clk 0:00:18]}  bxc6 {[%clk 0:01:24]} 17. Bxd6 {[%clk 0:00:19]}  Nxd6 {[%clk 0:01:23]} 18. Qf4 {[%clk 0:00:19]}  Qa5 {[%clk 0:01:02]} 19. Rxd6 {[%clk 0:00:19]}  Qxc3 {[%clk 0:01:00]} 20. Rc1 {[%clk 0:00:18]}  Qa3 {[%clk 0:00:57]} 21. Rc2 {[%clk 0:00:08]}  Be6 {[%clk 0:00:46]} 22. Bxe6 {[%clk 0:00:07]}  fxe6 {[%clk 0:00:45]} 23. Qe5 {[%clk 0:00:07]}  Qxa4 {[%clk 0:00:40]} 24. Rcxc6 {[%clk 0:00:06]}  Rab8 {[%clk 0:00:28]} 25. Rc7 {[%clk 0:00:04]}  Rb1+ {[%clk 0:00:21]} 26. Kh2 {[%clk 0:00:05]}  Qf4+ {[%clk 0:00:19]} 27. Qxf4 {[%clk 0:00:05]}  Rxf4 {[%clk 0:00:19]} 28. f3 {[%clk 0:00:06]}  Rb8 {[%clk 0:00:15]} 29. Rxa6 {[%clk 0:00:05]}  Rf6 {[%clk 0:00:15]} 30. Raa7 {[%clk 0:00:05]}  Rg6 {[%clk 0:00:14]} 31. g4 {[%clk 0:00:05]}  Re8 {[%clk 0:00:13]} 32. h4 {[%clk 0:00:04]}  h6 {[%clk 0:00:12]} 33. h5 {[%clk 0:00:04]}  Rg5 {[%clk 0:00:13]} 34. Kh3 {[%clk 0:00:03]}  e5 {[%clk 0:00:13]} 35. Rc4 {[%clk 0:00:03]}  Rf8 {[%clk 0:00:09]} 36. Kg3 {[%clk 0:00:03]}  Rf7 {[%clk 0:00:08]} 37. Ra8+ {[%clk 0:00:03]}  Rf8 {[%clk 0:00:07]} 38. Ra7 {[%clk 0:00:03]}  Rf7 {[%clk 0:00:08]} 39. Ra5 {[%clk 0:00:03]}  Re7 {[%clk 0:00:06]} 40. Ra8+ {[%clk 0:00:04]}  Kh7 {[%clk 0:00:05]} 41. Rcc8 {[%clk 0:00:04]}  g6 {[%clk 0:00:01]} 42. Rh8+ {[%clk 0:00:05]}  Kg7 {[%clk 0:00:02]} 43. Rag8+ {[%clk 0:00:05]}  Kf7 {[%clk 0:00:02]} 44. Rf8+ {[%clk 0:00:05]}  Kg7 {[%clk 0:00:02]} 45. Kh4 {[%clk 0:00:03]} 1-0


[Site "https://www.chess.com"]

[Event "Titled Tuesday Blitz June 21 Early 2022"]
[White "Ovezdurdyyeva, Jemal"]
[Black "Artemenko, Oleg"]
[WhiteFideId "14001888"]
[BlackFideId "14201798"]
[WhiteElo "1946"]
[BlackElo "2287"]
[Result "1/2-1/2"]
[Round "01"]
[TimeControl "180+1"]
[Date "2022.06.22"]
[WhiteClock "0:00:29"]
[BlackClock "0:01:36"]

1. e4 {[%clk 0:02:59]}  e6 {[%clk 0:02:56]} 2. d4 {[%clk 0:02:59]}  d5 {[%clk 0:02:57]} 3. Nd2 {[%clk 0:02:59]}  c5 {[%clk 0:02:56]} 4. Ngf3 {[%clk 0:02:50]}  cxd4 {[%clk 0:02:56]} 5. Nxd4 {[%clk 0:02:50]}  Nc6 {[%clk 0:02:56]} 6. N4f3 {[%clk 0:02:45]}  Nf6 {[%clk 0:02:56]} 7. exd5 {[%clk 0:02:42]}  Nxd5 {[%clk 0:02:55]} 8. Bc4 {[%clk 0:02:38]}  Be7 {[%clk 0:02:54]} 9. O-O {[%clk 0:02:38]}  O-O {[%clk 0:02:54]} 10. c3 {[%clk 0:02:36]}  a6 {[%clk 0:02:54]} 11. a4 {[%clk 0:02:33]}  b6 {[%clk 0:02:53]} 12. Ne4 {[%clk 0:02:30]}  Bb7 {[%clk 0:02:53]} 13. Qc2 {[%clk 0:02:27]}  h6 {[%clk 0:02:52]} 14. Rd1 {[%clk 0:02:25]}  Qc7 {[%clk 0:02:52]} 15. Bd3 {[%clk 0:02:19]}  Rfd8 {[%clk 0:02:50]} 16. Ng3 {[%clk 0:01:59]}  Rac8 {[%clk 0:02:47]} 17. Qe2 {[%clk 0:01:48]}  a5 {[%clk 0:02:42]} 18. Qe4 {[%clk 0:01:44]}  Nf6 {[%clk 0:02:40]} 19. Qe2 {[%clk 0:01:42]}  Bc5 {[%clk 0:02:33]} 20. Be3 {[%clk 0:01:41]}  Bxe3 {[%clk 0:02:29]} 21. Qxe3 {[%clk 0:01:42]}  Ne7 {[%clk 0:02:27]} 22. Bc2 {[%clk 0:01:38]}  Ned5 {[%clk 0:02:26]} 23. Qe5 {[%clk 0:01:34]}  Qxe5 {[%clk 0:02:22]} 24. Nxe5 {[%clk 0:01:34]}  Nf4 {[%clk 0:02:21]} 25. f3 {[%clk 0:01:30]}  Kf8 {[%clk 0:02:19]} 26. Kf2 {[%clk 0:01:27]}  Ke7 {[%clk 0:02:18]} 27. Ne2 {[%clk 0:01:26]}  Nxe2 {[%clk 0:02:17]} 28. Kxe2 {[%clk 0:01:27]}  Rxd1 {[%clk 0:02:17]} 29. Rxd1 {[%clk 0:01:26]}  Rc5 {[%clk 0:02:18]} 30. Nd3 {[%clk 0:01:20]}  Rg5 {[%clk 0:02:16]} 31. Kf2 {[%clk 0:01:17]}  Rd5 {[%clk 0:02:12]} 32. Nf4 {[%clk 0:01:15]}  Rxd1 {[%clk 0:02:12]} 33. Bxd1 {[%clk 0:01:16]}  e5 {[%clk 0:02:13]} 34. Nd3 {[%clk 0:01:11]}  Nd7 {[%clk 0:02:11]} 35. Ke3 {[%clk 0:01:11]}  f6 {[%clk 0:02:10]} 36. Bc2 {[%clk 0:01:08]}  Kd6 {[%clk 0:02:09]} 37. Nf2 {[%clk 0:01:08]}  Nc5 {[%clk 0:02:08]} 38. Ne4+ {[%clk 0:01:08]}  Bxe4 {[%clk 0:02:08]} 39. fxe4 {[%clk 0:01:07]}  h5 {[%clk 0:02:06]} 40. h4 {[%clk 0:01:05]}  g6 {[%clk 0:02:06]} 41. Bd1 {[%clk 0:01:04]}  Ne6 {[%clk 0:02:05]} 42. g3 {[%clk 0:01:03]}  Kc5 {[%clk 0:02:04]} 43. Kd3 {[%clk 0:01:02]}  Ng7 {[%clk 0:02:01]} 44. Bb3 {[%clk 0:01:01]}  g5 {[%clk 0:02:00]} 45. Bf7 {[%clk 0:01:00]}  gxh4 {[%clk 0:01:55]} 46. gxh4 {[%clk 0:01:01]}  f5 {[%clk 0:01:56]} 47. exf5 {[%clk 0:00:59]}  Nxf5 {[%clk 0:01:57]} 48. Bxh5 {[%clk 0:00:59]}  Nxh4 {[%clk 0:01:57]} 49. Ke4 {[%clk 0:00:57]}  Kd6 {[%clk 0:01:56]} 50. Bd1 {[%clk 0:00:48]}  Ng6 {[%clk 0:01:54]} 51. b4 {[%clk 0:00:48]}  Nf4 {[%clk 0:01:54]} 52. bxa5 {[%clk 0:00:47]}  bxa5 {[%clk 0:01:54]} 53. c4 {[%clk 0:00:47]}  Ne6 {[%clk 0:01:54]} 54. Ke3 {[%clk 0:00:42]}  Ng5 {[%clk 0:01:50]} 55. Kd3 {[%clk 0:00:41]}  Kc5 {[%clk 0:01:50]} 56. Bc2 {[%clk 0:00:39]}  Kb4 {[%clk 0:01:50]} 57. Bd1 {[%clk 0:00:39]}  Nh3 {[%clk 0:01:47]} 58. Bc2 {[%clk 0:00:35]}  Ng5 {[%clk 0:01:44]} 59. Bd1 {[%clk 0:00:35]}  Kc5 {[%clk 0:01:44]} 60. Bc2 {[%clk 0:00:34]}  Ne6 {[%clk 0:01:44]} 61. Ke4 {[%clk 0:00:33]}  Nd4 {[%clk 0:01:44]} 62. Bd1 {[%clk 0:00:33]}  Nc6 {[%clk 0:01:45]} 63. Kd3 {[%clk 0:00:30]}  Kd6 {[%clk 0:01:43]} 64. Ke4 {[%clk 0:00:29]}  Nb8 {[%clk 0:01:43]} 65. Kd3 {[%clk 0:00:29]}  Na6 {[%clk 0:01:43]} 66. Ke4 {[%clk 0:00:28]}  Nc5+ {[%clk 0:01:43]} 67. Ke3 {[%clk 0:00:27]}  Ke6 {[%clk 0:01:39]} 68. Bc2 {[%clk 0:00:27]}  Kf6 {[%clk 0:01:38]} 69. Bd1 {[%clk 0:00:28]}  Kg5 {[%clk 0:01:34]} 70. Bc2 {[%clk 0:00:28]}  Kg4 {[%clk 0:01:35]} 71. Bd1+ {[%clk 0:00:29]}  Kg3 {[%clk 0:01:35]} 72. Bc2 {[%clk 0:00:29]}  Kg2 {[%clk 0:01:36]} 73. Ke2 {[%clk 0:00:29]}  Kg3 {[%clk 0:01:34]} 74. Ke3 {[%clk 0:00:29]}  Kg4 {[%clk 0:01:35]} 75. Bd1+ {[%clk 0:00:29]}  Kf5 {[%clk 0:01:36]} 76. Bc2+ {[%clk 0:00:29]}  Ke6 {[%clk 0:01:36]} 77. Bd1 {[%clk 0:00:29]}  Kd6 {[%clk 0:01:36]} 78. Bc2 {[%clk 0:00:30]}  Ne6 {[%clk 0:01:37]} 79. Bd1 {[%clk 0:00:29]}  Ng5 {[%clk 0:01:36]} 80. Bc2 {[%clk 0:00:28]}  Kc5 {[%clk 0:01:36]} 81. Kd3 {[%clk 0:00:29]} 1/2-1/2


[Site "https://www.chess.com"]

[Event "Titled Tuesday Blitz June 21 Early 2022"]
[White "Paravyan, David"]
[Black "Bodi, Tibor"]
[WhiteFideId "4194985"]
[BlackFideId "701084"]
[WhiteElo "2569"]
[BlackElo "2243"]
[Result "1-0"]
[Round "01"]
[TimeControl "180+1"]
[Date "2022.06.21"]
[WhiteClock "0:00:36"]
[BlackClock "0:00:49"]

1. e4 {[%clk 0:03:00]}  c6 {[%clk 0:02:43]} 2. d4 {[%clk 0:03:00]}  d5 {[%clk 0:02:44]} 3. e5 {[%clk 0:03:00]}  Bf5 {[%clk 0:02:44]} 4. h4 {[%clk 0:03:00]}  h6 {[%clk 0:02:43]} 5. Bd3 {[%clk 0:02:53]}  Bxd3 {[%clk 0:02:42]} 6. Qxd3 {[%clk 0:02:53]}  e6 {[%clk 0:02:41]} 7. h5 {[%clk 0:02:53]}  Ne7 {[%clk 0:02:40]} 8. Ne2 {[%clk 0:02:52]}  c5 {[%clk 0:02:39]} 9. c3 {[%clk 0:02:51]}  cxd4 {[%clk 0:02:36]} 10. cxd4 {[%clk 0:02:51]}  Nec6 {[%clk 0:02:32]} 11. Nbc3 {[%clk 0:02:48]}  Nd7 {[%clk 0:02:31]} 12. g3 {[%clk 0:02:09]}  Rc8 {[%clk 0:02:28]} 13. O-O {[%clk 0:02:08]}  Be7 {[%clk 0:02:15]} 14. Kg2 {[%clk 0:02:02]}  O-O {[%clk 0:02:15]} 15. Be3 {[%clk 0:01:57]}  Qe8 {[%clk 0:02:10]} 16. Rae1 {[%clk 0:01:42]}  f6 {[%clk 0:02:01]} 17. exf6 {[%clk 0:01:31]}  Bxf6 {[%clk 0:01:59]} 18. Nf4 {[%clk 0:01:30]}  Bg5 {[%clk 0:01:51]} 19. Ng6 {[%clk 0:01:28]}  Bxe3 {[%clk 0:01:30]} 20. Rxe3 {[%clk 0:01:29]}  Rf6 {[%clk 0:01:28]} 21. Nxd5 {[%clk 0:01:26]}  Rxg6 {[%clk 0:01:23]} 22. hxg6 {[%clk 0:01:24]}  e5 {[%clk 0:01:18]} 23. dxe5 {[%clk 0:01:04]}  Ndxe5 {[%clk 0:01:11]} 24. Qf5 {[%clk 0:01:03]}  Rd8 {[%clk 0:01:02]} 25. Nf4 {[%clk 0:01:01]}  Rd2 {[%clk 0:00:53]} 26. Rfe1 {[%clk 0:00:55]}  Nd4 {[%clk 0:00:49]} 27. Qxe5 {[%clk 0:00:36]}  Qc6+ {[%clk 0:00:49]} 28. Qd5+ {[%clk 0:00:36]} 1-0


[Site "https://www.chess.com"]

[Event "Titled Tuesday Blitz June 21 Early 2022"]
[White "Piliczewski, Bogusz"]
[Black "Koellner, Ruben Gideon"]
[WhiteFideId "1104144"]
[BlackFideId "12993093"]
[WhiteElo "1896"]
[BlackElo "2563"]
[Result "0-1"]
[Round "01"]
[TimeControl "180+1"]
[Date "2022.06.22"]
[WhiteClock "0:00:02"]
[BlackClock "0:02:01"]

1. d4 {[%clk 0:02:53]}  d6 {[%clk 0:02:59]} 2. Nf3 {[%clk 0:02:52]}  Nf6 {[%clk 0:02:59]} 3. Bf4 {[%clk 0:02:52]}  g6 {[%clk 0:02:56]} 4. h3 {[%clk 0:02:53]}  Bg7 {[%clk 0:02:57]} 5. e3 {[%clk 0:02:53]}  O-O {[%clk 0:02:57]} 6. Be2 {[%clk 0:02:54]}  Nc6 {[%clk 0:02:58]} 7. O-O {[%clk 0:02:53]}  Nd7 {[%clk 0:02:58]} 8. c4 {[%clk 0:02:52]}  e5 {[%clk 0:02:58]} 9. Bh2 {[%clk 0:02:51]}  h6 {[%clk 0:02:57]} 10. Nc3 {[%clk 0:02:50]}  f5 {[%clk 0:02:57]} 11. a3 {[%clk 0:02:38]}  a5 {[%clk 0:02:54]} 12. Rb1 {[%clk 0:02:28]}  g5 {[%clk 0:02:51]} 13. d5 {[%clk 0:02:10]}  Ne7 {[%clk 0:02:49]} 14. e4 {[%clk 0:02:06]}  Nc5 {[%clk 0:02:38]} 15. Nd2 {[%clk 0:02:02]}  a4 {[%clk 0:02:35]} 16. f3 {[%clk 0:01:44]}  Bd7 {[%clk 0:02:29]} 17. Kh1 {[%clk 0:01:32]}  b6 {[%clk 0:02:28]} 18. Bg1 {[%clk 0:01:32]}  h5 {[%clk 0:02:27]} 19. Qe1 {[%clk 0:00:55]}  Ng6 {[%clk 0:02:13]} 20. Bd1 {[%clk 0:00:51]}  f4 {[%clk 0:02:06]} 21. Bc2 {[%clk 0:00:37]}  Qc8 {[%clk 0:02:05]} 22. Qe2 {[%clk 0:00:22]}  Bf6 {[%clk 0:02:04]} 23. Bxc5 {[%clk 0:00:12]}  bxc5 {[%clk 0:02:05]} 24. Nb5 {[%clk 0:00:02]}  g4 {[%clk 0:02:01]} 0-1


[Site "https://www.chess.com"]

[Event "Titled Tuesday Blitz June 21 Early 2022"]
[White "Poltorak, Sebastian"]
[Black "Marin Masis, Jose Esteban"]
[WhiteFideId "1199498"]
[BlackFideId "6508146"]
[WhiteElo "2104"]
[BlackElo "1710"]
[Result "1-0"]
[Round "01"]
[TimeControl "180+1"]
[Date "2022.06.22"]
[WhiteClock "0:00:05"]
[BlackClock "0:00:09"]

1. d4 {[%clk 0:02:59]}  Nf6 {[%clk 0:02:59]} 2. c4 {[%clk 0:02:56]}  e6 {[%clk 0:02:58]} 3. Nc3 {[%clk 0:02:55]}  Bb4 {[%clk 0:02:58]} 4. Qc2 {[%clk 0:02:54]}  c5 {[%clk 0:02:39]} 5. a3 {[%clk 0:02:47]}  Bxc3+ {[%clk 0:02:34]} 6. bxc3 {[%clk 0:02:47]}  d5 {[%clk 0:02:30]} 7. cxd5 {[%clk 0:02:47]}  exd5 {[%clk 0:02:24]} 8. Nf3 {[%clk 0:02:45]}  O-O {[%clk 0:02:23]} 9. Bg5 {[%clk 0:02:45]}  h6 {[%clk 0:02:10]} 10. Bh4 {[%clk 0:02:42]}  Be6 {[%clk 0:01:49]} 11. e3 {[%clk 0:02:41]}  Nbd7 {[%clk 0:01:48]} 12. Bd3 {[%clk 0:02:36]}  Rc8 {[%clk 0:01:46]} 13. O-O {[%clk 0:02:17]}  c4 {[%clk 0:01:42]} 14. Bf5 {[%clk 0:02:07]}  Re8 {[%clk 0:01:41]} 15. Bxe6 {[%clk 0:01:50]}  Rxe6 {[%clk 0:01:42]} 16. Nd2 {[%clk 0:01:50]}  Qa5 {[%clk 0:01:35]} 17. Rfe1 {[%clk 0:01:44]}  Rce8 {[%clk 0:01:33]} 18. Qb2 {[%clk 0:01:18]}  Rb6 {[%clk 0:01:22]} 19. Qc2 {[%clk 0:01:15]}  Ne4 {[%clk 0:01:20]} 20. Nxe4 {[%clk 0:01:10]}  Rxe4 {[%clk 0:01:21]} 21. Bg3 {[%clk 0:01:09]}  Rb3 {[%clk 0:01:19]} 22. Rac1 {[%clk 0:00:50]}  Rxa3 {[%clk 0:01:14]} 23. f3 {[%clk 0:00:50]}  Re6 {[%clk 0:00:59]} 24. e4 {[%clk 0:00:45]}  Ra2 {[%clk 0:00:42]} 25. Qd1 {[%clk 0:00:45]}  dxe4 {[%clk 0:00:41]} 26. fxe4 {[%clk 0:00:29]}  Qa3 {[%clk 0:00:40]} 27. Rc2 {[%clk 0:00:21]}  Ra6 {[%clk 0:00:38]} 28. Rxa2 {[%clk 0:00:15]}  Qxa2 {[%clk 0:00:39]} 29. Qg4 {[%clk 0:00:14]}  Nf6 {[%clk 0:00:36]} 30. Qc8+ {[%clk 0:00:14]}  Kh7 {[%clk 0:00:36]} 31. Qxb7 {[%clk 0:00:14]}  Rb6 {[%clk 0:00:29]} 32. Qxf7 {[%clk 0:00:14]}  Rb2 {[%clk 0:00:28]} 33. Qe6 {[%clk 0:00:06]}  Rxg2+ {[%clk 0:00:28]} 34. Kh1 {[%clk 0:00:06]}  Qd2 {[%clk 0:00:14]} 35. Qf5+ {[%clk 0:00:06]}  Kg8 {[%clk 0:00:14]} 36. Rf1 {[%clk 0:00:06]}  Nh5 {[%clk 0:00:12]} 37. Qxh5 {[%clk 0:00:04]}  Re2 {[%clk 0:00:09]} 38. Qf3 {[%clk 0:00:05]}  Rxh2+ {[%clk 0:00:08]} 39. Bxh2 {[%clk 0:00:05]}  Qg5 {[%clk 0:00:09]} 40. e5 {[%clk 0:00:05]} 1-0


[Site "https://www.chess.com"]

[Event "Titled Tuesday Blitz June 21 Early 2022"]
[White "Priyanka Nutakki"]
[Black "Nilssen, Ellen Fredericia"]
[WhiteFideId "25049615"]
[BlackFideId "1441230"]
[WhiteElo "1912"]
[BlackElo "2094"]
[Result "1-0"]
[Round "01"]
[TimeControl "180+1"]
[Date "2022.06.22"]
[WhiteClock "0:01:08"]
[BlackClock "0:00:08"]

1. d4 {[%clk 0:03:00]}  Nf6 {[%clk 0:02:57]} 2. c4 {[%clk 0:02:59]}  e6 {[%clk 0:02:57]} 3. Nf3 {[%clk 0:02:58]}  b6 {[%clk 0:02:56]} 4. g3 {[%clk 0:02:52]}  Bb7 {[%clk 0:02:55]} 5. Bg2 {[%clk 0:02:52]}  Be7 {[%clk 0:02:51]} 6. O-O {[%clk 0:02:52]}  O-O {[%clk 0:02:50]} 7. Nc3 {[%clk 0:02:52]}  d6 {[%clk 0:02:50]} 8. d5 {[%clk 0:02:51]}  e5 {[%clk 0:02:50]} 9. e4 {[%clk 0:02:50]}  Nbd7 {[%clk 0:02:49]} 10. h3 {[%clk 0:02:48]}  Ne8 {[%clk 0:02:44]} 11. Qc2 {[%clk 0:02:45]}  g6 {[%clk 0:02:43]} 12. Bh6 {[%clk 0:02:44]}  Ng7 {[%clk 0:02:43]} 13. b4 {[%clk 0:02:45]}  f5 {[%clk 0:02:37]} 14. a4 {[%clk 0:02:40]}  Rf7 {[%clk 0:02:18]} 15. a5 {[%clk 0:02:39]}  Ba6 {[%clk 0:02:00]} 16. Nd2 {[%clk 0:02:23]}  Bg5 {[%clk 0:01:46]} 17. Bxg5 {[%clk 0:02:22]}  Qxg5 {[%clk 0:01:47]} 18. axb6 {[%clk 0:02:17]}  axb6 {[%clk 0:01:48]} 19. Ra2 {[%clk 0:02:08]}  Bb7 {[%clk 0:01:31]} 20. Rxa8+ {[%clk 0:02:05]}  Bxa8 {[%clk 0:01:32]} 21. Ra1 {[%clk 0:02:05]}  Rf8 {[%clk 0:01:30]} 22. Nb5 {[%clk 0:01:59]}  f4 {[%clk 0:01:20]} 23. g4 {[%clk 0:01:59]}  h5 {[%clk 0:01:06]} 24. Nf3 {[%clk 0:01:30]}  Qd8 {[%clk 0:01:02]} 25. g5 {[%clk 0:01:28]}  h4 {[%clk 0:00:51]} 26. Ra7 {[%clk 0:01:26]}  Re8 {[%clk 0:00:23]} 27. Nxc7 {[%clk 0:01:23]}  Qb8 {[%clk 0:00:17]} 28. Nxe8 {[%clk 0:01:16]}  Qxa7 {[%clk 0:00:16]} 29. Nxd6 {[%clk 0:01:14]}  Qa1+ {[%clk 0:00:13]} 30. Kh2 {[%clk 0:01:13]}  Nf8 {[%clk 0:00:12]} 31. c5 {[%clk 0:01:11]}  bxc5 {[%clk 0:00:10]} 32. bxc5 {[%clk 0:01:12]}  Qa7 {[%clk 0:00:08]} 33. c6 {[%clk 0:01:09]}  Qb6 {[%clk 0:00:08]} 34. c7 {[%clk 0:01:08]} 1-0


[Site "https://www.chess.com"]

[Event "Titled Tuesday Blitz June 21 Early 2022"]
[White "Pulpan, Jakub"]
[Black "Pham, Tran Gia Phuc"]
[WhiteFideId "302759"]
[BlackFideId "12415669"]
[WhiteElo "2495"]
[BlackElo "1789"]
[Result "1-0"]
[Round "01"]
[TimeControl "180+1"]
[Date "2022.06.22"]
[WhiteClock "0:01:10"]
[BlackClock "0:00:26"]

1. c4 {[%clk 0:02:55]}  Nf6 {[%clk 0:02:59]} 2. g3 {[%clk 0:02:54]}  c5 {[%clk 0:02:58]} 3. Bg2 {[%clk 0:02:44]}  g6 {[%clk 0:02:57]} 4. b3 {[%clk 0:02:43]}  Bg7 {[%clk 0:02:56]} 5. Bb2 {[%clk 0:02:44]}  O-O {[%clk 0:02:53]} 6. Nf3 {[%clk 0:02:44]}  Nc6 {[%clk 0:02:52]} 7. d4 {[%clk 0:02:44]}  cxd4 {[%clk 0:02:52]} 8. Nxd4 {[%clk 0:02:45]}  Nxd4 {[%clk 0:02:37]} 9. Qxd4 {[%clk 0:02:43]}  d6 {[%clk 0:02:35]} 10. O-O {[%clk 0:02:43]}  Rb8 {[%clk 0:02:31]} 11. Qxa7 {[%clk 0:02:42]}  Qc7 {[%clk 0:02:30]} 12. Nc3 {[%clk 0:02:42]}  Bd7 {[%clk 0:02:27]} 13. Nd5 {[%clk 0:02:37]}  Nxd5 {[%clk 0:02:25]} 14. Bxg7 {[%clk 0:02:38]}  Kxg7 {[%clk 0:02:14]} 15. Bxd5 {[%clk 0:02:38]}  Bc6 {[%clk 0:02:12]} 16. Qd4+ {[%clk 0:02:38]}  f6 {[%clk 0:02:11]} 17. a4 {[%clk 0:02:38]}  b6 {[%clk 0:02:09]} 18. h4 {[%clk 0:02:38]}  h5 {[%clk 0:02:09]} 19. Rfd1 {[%clk 0:02:38]}  Bd7 {[%clk 0:01:59]} 20. Rd3 {[%clk 0:02:37]}  Bf5 {[%clk 0:01:48]} 21. Re3 {[%clk 0:02:31]}  Rfe8 {[%clk 0:01:47]} 22. Be6 {[%clk 0:02:28]}  Bxe6 {[%clk 0:01:46]} 23. Rxe6 {[%clk 0:02:29]}  Qc5 {[%clk 0:01:46]} 24. Qd3 {[%clk 0:02:11]}  Kf7 {[%clk 0:01:42]} 25. Re3 {[%clk 0:02:10]}  Ra8 {[%clk 0:01:39]} 26. Rd1 {[%clk 0:02:10]}  f5 {[%clk 0:01:33]} 27. Rf3 {[%clk 0:02:08]}  Kg7 {[%clk 0:01:32]} 28. e4 {[%clk 0:02:08]}  Rf8 {[%clk 0:01:28]} 29. Re1 {[%clk 0:02:05]}  Qe5 {[%clk 0:01:22]} 30. Rf4 {[%clk 0:01:54]}  e6 {[%clk 0:00:57]} 31. Qd2 {[%clk 0:01:49]}  Qc5 {[%clk 0:00:54]} 32. exf5 {[%clk 0:01:24]}  exf5 {[%clk 0:00:45]} 33. Rd4 {[%clk 0:01:24]}  Rf6 {[%clk 0:00:42]} 34. Re7+ {[%clk 0:01:22]}  Kf8 {[%clk 0:00:34]} 35. Rh7 {[%clk 0:01:18]}  Rc8 {[%clk 0:00:26]} 36. Qh6+ {[%clk 0:01:11]}  Ke8 {[%clk 0:00:26]} 37. Qg7 {[%clk 0:01:10]} 1-0


[Site "https://www.chess.com"]

[Event "Titled Tuesday Blitz June 21 Early 2022"]
[White "Puranik, Abhimanyu"]
[Black "Manukian, Artak"]
[WhiteFideId "5061245"]
[BlackFideId "13301373"]
[WhiteElo "2520"]
[BlackElo "2461"]
[Result "1-0"]
[Round "01"]
[TimeControl "180+1"]
[Date "2022.06.22"]
[WhiteClock "0:01:17"]
[BlackClock "0:01:57"]

1. e4 {[%clk 0:02:59]}  c6 {[%clk 0:02:59]} 2. d4 {[%clk 0:02:57]}  d5 {[%clk 0:03:00]} 3. Nd2 {[%clk 0:02:58]}  dxe4 {[%clk 0:03:00]} 4. Nxe4 {[%clk 0:02:58]}  Nf6 {[%clk 0:03:01]} 5. Nxf6+ {[%clk 0:02:58]}  exf6 {[%clk 0:03:02]} 6. c3 {[%clk 0:02:58]}  Bd6 {[%clk 0:03:02]} 7. Bd3 {[%clk 0:02:55]}  Na6 {[%clk 0:03:01]} 8. Ne2 {[%clk 0:02:55]}  Nc7 {[%clk 0:02:53]} 9. O-O {[%clk 0:02:51]}  Nd5 {[%clk 0:02:52]} 10. c4 {[%clk 0:02:49]}  Ne7 {[%clk 0:02:50]} 11. Qc2 {[%clk 0:02:46]}  Ng6 {[%clk 0:02:48]} 12. f4 {[%clk 0:02:45]}  O-O {[%clk 0:02:47]} 13. f5 {[%clk 0:02:45]}  Ne7 {[%clk 0:02:47]} 14. Be3 {[%clk 0:02:39]}  Re8 {[%clk 0:02:47]} 15. Bf2 {[%clk 0:02:27]}  Qc7 {[%clk 0:02:44]} 16. Bg3 {[%clk 0:02:22]}  Bxg3 {[%clk 0:02:44]} 17. Nxg3 {[%clk 0:02:23]}  b6 {[%clk 0:02:40]} 18. Rad1 {[%clk 0:02:19]}  Bb7 {[%clk 0:02:38]} 19. Qf2 {[%clk 0:01:58]}  c5 {[%clk 0:02:35]} 20. d5 {[%clk 0:01:57]}  Nc8 {[%clk 0:02:35]} 21. Qf3 {[%clk 0:01:53]}  Nd6 {[%clk 0:02:34]} 22. Qg4 {[%clk 0:01:53]}  Kh8 {[%clk 0:02:27]} 23. Nh5 {[%clk 0:01:53]}  Rg8 {[%clk 0:02:26]} 24. Rf3 {[%clk 0:01:51]}  Rae8 {[%clk 0:02:13]} 25. Rh3 {[%clk 0:01:51]}  Re5 {[%clk 0:02:06]} 26. Qh4 {[%clk 0:01:38]}  Qe7 {[%clk 0:02:06]} 27. Nxf6 {[%clk 0:01:35]}  h6 {[%clk 0:02:02]} 28. Nxg8 {[%clk 0:01:35]}  Kxg8 {[%clk 0:02:02]} 29. f6 {[%clk 0:01:31]}  g5 {[%clk 0:01:57]} 30. Qxh6 {[%clk 0:01:18]}  Re1+ {[%clk 0:01:56]} 31. Rxe1 {[%clk 0:01:17]}  Qxe1+ {[%clk 0:01:57]} 32. Bf1 {[%clk 0:01:17]} 1-0


[Site "https://www.chess.com"]